Cogmind - Beta 16 @@@ ROGUE MODE // 2026.02.06 @ 01:13:41 Player: qwewqetest Result: Destroyed self with Mini Grenade Launcher Performance ------------- Evolutions (0) 0 Regions Visited (2) 400 Robots Destroyed (24) 120 Value Destroyed (569) 569 Prototype IDs (0) 0 Alien Tech Used (0) 0 Bonus (0) 0 TOTAL SCORE: 1089 Bonus ------- None Cogmind --------- Core Integrity 0/250 Matter 200/300 Energy 100/100 System Corruption 0% Temperature Cool (0) Movement Rolling (100) Location -10/Mines Parts ------- > --- POWER (1) -------- (None) > --- PROPULSION (2) --- Aluminum Leg Compact Wheel > --- UTILITY (2) ------ Terrain Scanner Targeting Computer > --- WEAPON (2) ------- Grenade Launcher Mini Grenade Launcher > --- INVENTORY (5) ---- Wheel High-capacity Storage Unit Small Laser Beam Cannon Light Assault Rifle Peak State ------------ > --- POWER ------------ Light Ion Engine > --- PROPULSION ------- Aluminum Leg Aluminum Leg > --- UTILITY ---------- Small Storage Unit Targeting Computer > --- WEAPON ----------- Particle Gun Light Assault Rifle > --- INVENTORY -------- Light Ion Engine Compact Wheel Compact Wheel Compact Wheel Heat Sink High-capacity Storage Unit Small Laser Light Assault Rifle [Rating: 8] Favorites ----------- Power Light Ion Engine Engine Light Ion Engine Propulsion Aluminum Leg Leg Aluminum Leg Wheel Compact Wheel Utility Targeting Computer Device Heat Sink Storage Small Storage Unit Processor Targeting Computer Weapon Particle Gun Energy Gun Particle Gun Energy Cannon Beam Cannon Ballistic Gun Light Assault Rifle Launcher Grenade Launcher Build | -11 -10 -10 ------- Run | Yrd Mat Min Slots Evolved . | . . . Power . | . . . Propulsion . | . . . Utility . | . . . Weapon . | . . . Parts Attached 20 | . 13 7 Power 2 | . 2 . Engine 2 | . 2 . Core . | . . . Reactor . | . . . Propulsion 7 | . 5 2 Treads . | . . . Leg 6 | . 5 1 Wheel 1 | . . 1 Hover . | . . . Flight . | . . . Utility 4 | . 3 1 Device 3 | . 2 1 Storage . | . . . Processor 1 | . 1 . Hackware . | . . . Protection . | . . . Artifact . | . . . Weapon 7 | . 3 4 Energy Gun 2 | . 1 1 Energy Cannon 2 | . 1 1 Ballistic Gun 1 | . 1 . Ballistic Cannon . | . . . Launcher 2 | . . 2 Special Weapon . | . . . Impact Weapon . | . . . Slashing Weapon . | . . . Piercing Weapon . | . . . Special Melee Weapon . | . . . Unidentified Prototypes . | . . . Parts Lost 7 | . 1 6 Power 1 | . . 1 Propulsion 2 | . . 2 Utility 1 | . . 1 Weapon 3 | . 1 2 Highest Loss Streak 6 | . 1 6 To Critical Strikes . | . . . Average Backups 6 | . 6 4 Power . | . . . Propulsion 1 | . 2 . Utility 1 | . 1 1 Weapon 2 | . 1 2 Tool/Special . | . . . Unused Backups 16 | . 13 3 Power 3 | . 3 . Propulsion 7 | . 6 1 Utility 2 | . 1 1 Weapon 4 | . 3 1 Tool/Special . | . . . Average Slot Usage (%) 92 | . 95 87 Engine 11 | . 14 6 Leg 24 | . 27 18 Wheel 2 | . . 7 Device 6 | . 3 12 Storage 7 | . 10 . Processor 11 | . 9 14 Energy Gun 12 | . 14 9 Energy Cannon 6 | . 3 11 Ballistic Gun 7 | . 10 . Launcher 1 | . . 5 Peak Build Rating 8 | . 8 8 Average Rating 7 | . 7 6 On Entrance 6 | 6 6 8 Avg Prop Armor Cover (%) 12 | . . 12 Naked Turns . | . . . Heaviest Build 12 | 10 12 12 Greatest Support 20 | 20 20 20 Greatest Overweight (x) 1 | . 1 . Average Overweight (x) . | . . . Largest Inventory Capacity 8 | . 8 5 Average Capacity 6 | . 7 5 Most Carried 8 | . 8 5 Average Carried 6 | . 6 4 Final Capacity 8 | 8 5 5 Final Carried 6 | 6 5 5 Class Distribution -------------------- 53% | Scavenger-Mutant 46% | Mutant Dominant Class ---------------- Scavenger-Mutant | -10/Materials Mutant | -10/Mines Resources | -11 -10 -10 ----------- Run | Yrd Mat Min Matter Collected 490 | 200 200 90 Remotely . | . . . Salvage Created 765 | . 548 217 Parts 42 | . 29 13 Haulers Intercepted 1 | . 1 . Recyclers Shooed 1 | . 1 . Parts Field Recycled . | . . . Retrieved Matter . | . . . Parts Self-Destructed . | . . . Prevented . | . . . Parts Restored . | . . . Kills | -11 -10 -10 ------- Run | Yrd Mat Min Combat Hostiles Destroyed 19 | . 12 7 Guns 12 | . 11 1 Cannons 4 | . . 4 AOE 2 | . . 2 Classes Destroyed 8 | . 5 3 Worker 2 | . 1 1 Hauler 1 | . 1 . Recycler 1 | . . 1 Watcher 3 | . 3 . Swarmer 6 | . 3 3 Grunt 9 | . 9 . Demolisher 2 | . . 2 Assembled 2 | . . 2 Best Kill Streak 4 | . 4 3 Combat Bots Only 3 | . 3 3 Max Kills in Single Turn 1 | . 1 1 Gunslinging . | . . . Exploded 1 | . . 1 Melee . | . . . Uniques/NPCs Destroyed . | . . . Combat | -11 -10 -10 -------- Run | Yrd Mat Min Hostile Shots Fired 80 | . 48 32 Missed 18 | . 14 4 Hits 62 | . 34 28 Projectile 62 | . 34 28 AOE 13 | . . 13 Critical Strikes 1 | . 1 . Damage Taken 1106 | . 406 700 Core 256 | . 109 147 Absorbed by Shields . | . . . Core Remaining (%) 100 | 100 . . Volleys Fired 69 | . 47 22 Largest 2 | . 2 2 Hottest 125 | . 125 125 Shots Fired 132 | . 92 40 Gun 98 | . 90 8 Cannon 21 | . 2 19 Launcher 13 | . . 13 Special . | . . . Kinetic 45 | . 45 . Thermal 74 | . 47 27 Explosive 13 | . . 13 Electromagnetic . | . . . Robot Hit Streak 8 | . 7 8 Robot Miss Streak 4 | . 4 3 Penetration Max . | . . . Secondary Targets . | . . . Shots Hit Robots 80 | . 57 23 Core Hits 43 | . 30 13 Critical Kills 1 | . 1 . Critical Parts Destroyed . | . . . Critical Strikes 4 | . 3 1 Burn 3 | . 2 1 Meltdown 1 | . 1 . Melee Attacks . | . . . Impact . | . . . Slashing . | . . . Piercing . | . . . Sneak Attacks . | . . . Combat Hostiles . | . . . Follow-up Attacks . | . . . Damage Inflicted 1093 | . 619 474 Guns 631 | . 569 62 Cannons 280 | . 34 246 Explosions 166 | . . 166 Melee . | . . . Ramming 16 | . 16 . Kinetic 226 | . 226 . Thermal 685 | . 377 308 Explosive 166 | . . 166 Electromagnetic . | . . . Impact . | . . . Slashing . | . . . Piercing . | . . . Highest Corruption . | . . . Average Corruption . | . . . Corruption Purged . | . . . Corruption Blocked . | . . . Overload Shots . | . . . Overflow Damage 16 | . . 16 Projectiles 7 | . . 7 Explosions 9 | . . 9 Melee . | . . . Knockbacks 1 | . 1 . Impact 1 | . 1 . Kinetic . | . . . Secondary . | . . . Self-Inflicted Damage 61 | . . 61 Shots 2 | . . 2 Rammed . | . . . Targets Rammed 3 | . 3 . Kicked 3 | . 3 . Crushed . | . . . Highest Temperature 263 | . 229 263 Average Temperature 65 | . 56 90 Received Heat Transfer 201 | . 201 . Siege Activations . | . . . Martial Activations . | . . . Shielding Activations . | . . . Robots Disrupted . | . . . Combat Hostiles . | . . . Robots Corrupted . | . . . Combat Hostiles . | . . . Parts Fried . | . . . Impact Corruptions . | . . . Robots Melted 1 | . 1 . Combat Hostiles 1 | . 1 . Parts Melted 6 | . 4 2 Heat Transferred 1781 | . 1040 741 Parts Sabotaged . | . . . Parts Stolen . | . . . Parts Stripped . | . . . Power Chain Reactions . | . . . Alert | -11 -10 -10 ------- Run | Yrd Mat Min Maximum Alert Level . | . . . Low Security (%) 100 | . 100 100 Level 1 . | . . . Level 2 . | . . . Level 3 . | . . . Level 4 . | . . . Level 5 . | . . . High Security . | . . . Max Security . | . . . Peak Influence 135 | . 135 103 Initial 33 | . . 33 Average 61 | . 78 29 Influence Increases 552 | . 375 177 Destroy 0b10 Robot/C 340 | . 240 100 Destroy 0b10 Robot/NC 35 | . 25 10 Destroy Leader 78 | . 58 20 Successful Hack 5 | . 5 . Destroy Structure 49 | . 2 47 Lose Combat Pursuer 45 | . 45 . Influence Decreases 539 | . 288 251 Entered New Map 54 | . . 54 Time Decay 432 | . 278 154 Lost Part 53 | . 10 43 Squads Dispatched 1 | . 1 . Investigation 1 | . 1 . Extermination . | . . . Reinforcement . | . . . Assault . | . . . Garrison . | . . . Intercept . | . . . Searches Triggered . | . . . Construction Impeded . | . . . Haulers Reinforced . | . . . Active Scanning Responses . | . . . Cargo Convoy Interrupts . | . . . Stealth | -11 -10 -10 --------- Run | Yrd Mat Min Distress Signals . | . . . Communications Jammed . | . . . Distress Signals . | . . . Times Spotted 29 | . 20 9 Peak Tracking Total 4 | . 4 3 Tactical Retreats 3 | . 2 1 Traps | -11 -10 -10 ------- Run | Yrd Mat Min Traps Triggered 3 | . 3 . Indirectly . | . . . Trap Hack Attempts . | . . . Triggered . | . . . Disarmed . | . . . Reprogrammed . | . . . Reused . | . . . Traps Extracted . | . . . Installed . | . . . Triggered . | . . . Machines | -11 -10 -10 ---------- Run | Yrd Mat Min Machines Disabled . | . . . Max in Single Turn . | . . . Machines Repaired . | . . . Machines Dismantled . | . . . Machines Sabotaged . | . . . Overloaded Fab Kills . | . . . Hacking | -11 -10 -10 --------- Run | Yrd Mat Min Machines Accessed 2 | . 2 . Terminals 2 | . 2 . Fabricators . | . . . Repair Stations . | . . . Recycling Units . | . . . Scanalyzers . | . . . Garrison Access . | . . . Total Hacks 6 | . 6 . Successful 3 | . 3 . Failed 3 | . 3 . Catastrophic . | . . . Database Lockouts . | . . . Manual . | . . . Terminals 6 | . 6 . Fabricators . | . . . Repair Stations . | . . . Recycling Units . | . . . Scanalyzers . | . . . Garrison Access . | . . . Terminal Hacks 3 | . 3 . Dispatch Records 1 | . 1 . Hauler Manifests 1 | . 1 . Zone Layout 1 | . 1 . Fabricator Hacks . | . . . Repair Station Hacks . | . . . Recycling Unit Hacks . | . . . Scanalyzer . | . . . Garrison Access Hacks . | . . . Unauthorized Hacks . | . . . Terminals . | . . . Fabricators . | . . . Repair Stations . | . . . Recycling Units . | . . . Scanalyzers . | . . . Garrison Access . | . . . Data Cores Recovered . | . . . Used . | . . . Hacking Detections 2 | . 2 . Full Trace Events . | . . . Feedback Events . | . . . Feedback Blocked . | . . . Robot Schematics Acquired . | . . . Robots Built . | . . . Authchips . | . . . Time . | . . . Total Robot Build Rating . | . . . Part Schematics Acquired . | . . . Parts Built . | . . . Authchips . | . . . Time . | . . . Total Part Build Rating . | . . . Part Studies Acquired . | . . . Parts Repaired . | . . . Time . | . . . Parts Recycled . | . . . Recycled Matter . | . . . Retrieved Matter . | . . . Retrieved Components . | . . . Parts Scanalyzed . | . . . Part Schematics Acquired . | . . . Parts Damaged . | . . . Bothacking | -11 -10 -10 ------------ Run | Yrd Mat Min Used RIF Installer . | . . . Robots Hacked . | . . . Non-combat . | . . . Combat . | . . . Robot Hacks Applied . | . . . Relay Couplers Released . | . . . Fabnet Peak Effective % . | . . . Robots Rewired . | . . . Allies Hacked . | . . . Hacks Repelled . | . . . Allies | -11 -10 -10 -------- Run | Yrd Mat Min Total Allies . | . . . Largest Group . | . . . Highest-Rated Group . | . . . Highest-Rated Ally . | . . . Total Orders . | . . . Ally Attacks . | . . . Total Damage . | . . . Kills . | . . . Allies Corrupted . | . . . Allies Melted . | . . . Intel | -11 -10 -10 ------- Run | Yrd Mat Min Active Infowar (turns) 186 | . . 186 Terrain 186 | . . 186 Robot Analysis Total . | . . . Derelict Logs Recovered 1 | . . 1 Drone Launches . | . . . Drone Recoveries . | . . . Exploration | -11 -10 -10 ------------- Run | Yrd Mat Min Turns Passed 1123 | . 732 391 Spaces Moved 717 | 1 433 283 Core . | . . . Treads . | . . . Legs 565 | 1 433 131 Wheels 152 | . . 152 Hover . | . . . Flight . | . . . Fastest Speed 100 | 120 120 100 Average Speed 115 | 120 120 109 Slowest Speed 190 | 120 190 120 Overloaded Moves . | . . . Propulsion Burnouts . | . . . Robots Hopped . | . . . Potential Cave-ins 2 | . . 2 Cave-ins Triggered . | . . . Exploration Rate (%) 32 | 1 63 34 Regions Visited 2 Branch Regions 1 Pre-discovered Areas 1 | . . 1 Known Exits Taken . | . . . Unknown Exits Taken 2 | 1 1 . Scrap Searched 3 | . . 3 Spaces Dug 35 | . . 35 Terrain Destroyed 106 | . . 106 Melee . | . . . Projectile . | . . . AOE 106 | . . 106 Terrain Rammed . | . . . Walls Destroyed . | . . . Machines Disabled . | . . . Actions | -11 -10 -10 --------- Run | Yrd Mat Min Total 892 | . 568 324 Wait 41 | . 33 8 Move 715 | . 432 283 Hop . | . . . Pick Up 17 | . 14 3 Fast Attach 8 | . 5 3 Attach 3 | . 1 2 Detach 1 | . 1 . Swap 12 | . 10 2 Drop 23 | . 22 1 Fire 69 | . 47 22 Melee . | . . . Ram . | . . . Kick 3 | . 3 . Crush . | . . . Escape Stasis . | . . . Rewire . | . . . Trap . | . . . Miscellaneous . | . . . Route ------- -11/Scrapyard -10/Materials (discovered 3 exits: [*Mat x2] / [*Min]) -10/Mines (discovered 1 exit: [*Mat]) History --------- Turn | Location | Event 1 | -11/Scrapyard | Discovered new exit (range 0) 1 | -11/Scrapyard | Entered Materials 121 | -10/Materials | Discovered new exit (range 11) 302 | -10/Materials | Build established: Mutant 516 | -10/Materials | Discovered new exit (range 15) 601 | -10/Materials | Discovered new exit (range 15) 627 | -10/Materials | Build established: Scavenger-Mutant 733 | -10/Materials | Entered Mines 736 | -10/Mines | Learned location of Zion (-7) 739 | -10/Mines | Discovered new exit (range 7) 870 | -10/Mines | Assembled infested the area 903 | -10/Mines | Core integrity fell below 50% 954 | -10/Mines | Lost 6 parts (1p2n1u2w) 1080 | -10/Mines | Core integrity fell below 20% 1124 | -10/Mines | Destroyed self with Mini Grenade Launcher Last Messages --------------- 01075_ The unstable cave ceiling collapses. 01075_ U-05 Engineer lays Concrete. 01080_ The unstable cave ceiling collapses. 01080_ Destroyed Asb. Hover Unit. 01080_ as-22793 destroyed. 01080_ U-05 Engineer lays Concrete. 01085_ The unstable cave ceiling collapses. 01085_ U-05 Engineer lays Concrete. 01087_ U-05 Engineer builds a Wall. 01088_ The unstable cave ceiling collapses. 01092_ U-05 Engineer builds a Wall. 01094_ Searching scrap... 01094_ Found Structural Scanner. 01094_ Found Heat Sink. 01094_ Found Flight Unit. 01094_ Found 50 Matter. 01095_ Acquired 50 matter. 01097_ The unstable cave ceiling collapses. 01108_ as-13835 destroyed. 01109_ The unstable cave ceiling collapses. Map ----- +----------------------------------------------------+ | # ###??# ##??????????????????????????????????? | | # #??# !=#??????????????????????????????????? | | ?# #?###*#???#??????????????????????????????? | | ??? #??#%#??????????????????????????????????? | | ?????# ###=#??????????????????????????????????? | | ??????# ## ###????????????????????????????????? | | ???????# ##???????????????????????????????? | | ???????# ##???????#??????????????????????? | | ????#??# #####??????????????????????????? | | ???????## #??????????????????????????? | | ????###### # ##????????????????????????? | | ???## ###### ## #???????#?????????????????? | | ??## #???# #? ##????????####?????????????? | | ??# #???# ##? ###?????????# ??????????????? | | ?## < ##### #####??????#??### #??????????????? | | ?# %% ##??????##### ## #??????????????? | | ?# != ######## # ##? ??????????? | | ?## ########[ ## # # ?????????? | | ??###?#?????# # ?????????? | | ????????????## # # #????????????? | | ?????????????## # # #????????????? | | ??????????????# # #### # #????????????? | | ??????????????# # ## # #????????????? | | ??????????????# # ## # ###????????????? | | ??????????????# ## ## #?####??????????????? | | ??????????????# #### @ ##???#??#???????????? | | ??????????????# #?# #???#??????????????? | | ????????####### ## #??????????????????? | | ??#?????# ## ##????#?????????????? | | ????????# ######### ##???????????????????? | | ????????# #???????### #???????#????????????? | | ????????# #????????# ????????????????????? | | #######?# #??#?????# ### ???#???????????????? | | #?# #????????+ ??## #??????????????????? | | !! #?# #????????+ ???# ##??????????????????? | | !! #?# #?????? ?# ??? #???????????????????? | | ! #?# #????????# ??? #???????????????????? | | !! ### #????????# ???? ##???????????????????? | | ## ##??????? ???? ####???????????????????? | | #### #??????? ????#???????????????????????? | | ???# #?????????????????????????????????????? | | ???# ##?????????????????????????????????????? | | ???# ##??????????????????????????????????????? | | ???# #???????????????????????????????????????? | | ???## ##???????????????????????????????????????? | | ????#####????????????????????????????????????????? | | ?????????????????????????????????????????????????? | | ?????????????????????????????????????????????????? | | ?????????????????????????????????????????????????? | | ?????????????????????????????????????????????????? | +----------------------------------------------------+ Best States ------------- Heat Dissipation 35 Energy Generation 10 Energy Capacity 250 Matter Stores 300 Matter Capacity 300 Sight Range 16 Terrain Scan Range 14 Terrain Scan Density 10 Evasion (%) 55 Targeting Accuracy 5 Item Schematics ----------------- None Robot Schematics ------------------ None Fabricated ------------ Nothing Repaired ---------- Nothing Studied --------- None Alien Tech Used ----------------- None Achievements -------------- None Challenges ------------ None Game ------ Seed TeslaScrapTrap Manual? 0 Play Time 00:11:40 Cumulative 228.5 hours Start 2026.02.03 @ 00:39:00 End 2026.02.06 @ 01:13:41 Sessions 4 Manual Loads 0 Difficulty Rogue Special Mode None Game No. 102 Rogue 102 Adventurer 0 Explorer 0 Win Type - Total 26 Types 12/0/7/1/0/1/1/1/0/3 Lore% 76 Gallery% 74 Achievement% 57 Wizard Run 0 Options --------- Layout 0 ASCII 0 Keyboard 1 Movement Numpad Keybinds 0 Fullscreen 1 Font 18/Smallcaps Map View 76x50 Zoom Use 0% Tactical HUD 1 Map Filters SATURATION(90)|BRIGHTNESS(110) Filters NONE Steam 0 RUN: f0502c84-22f4-42d1-8796-50ddc9674c2e